fUST/lending_fUST_20240525
["ID","MTS","AMOUNT","RATE_DAILY","PERIOD"]
[327873766,1716570641155,-594.31,0.00024931,3]
[327873767,1716570641164,-500.0,0.00024931,3]
[327873768,1716570641174,-1302.28,0.00024931,3]
[327873769,1716570641183,-500.0,0.00024931,3]
[327873770,1716570641192,-500.0,0.00024931,3]
[327873771,1716570641201,-598.12,0.00024931,3]
[327873772,1716570641210,-500.0,0.00024931,3]
[327873773,1716570641220,-500.0,0.00024931,3]
[327873774,1716570641230,-500.0,0.00024931,3]
[327873775,1716570641240,-1380.52,0.00024931,3]
[327873776,1716570641249,-500.0,0.00024931,3]
[327873777,1716570641258,-500.0,0.00024931,3]
[327873778,1716570641267,-500.0,0.00024931,3]
[327873779,1716570641276,-719.24,0.00024931,3]
[327873780,1716570641286,-594.85,0.00024931,3]
[327873781,1716570641295,-500.0,0.00024931,3]
[327873782,1716570641305,-638.39,0.00024931,3]
[327873784,1716570641314,-500.0,0.00024931,3]
[327873785,1716570641324,-804.24,0.00024931,3]
[327873786,1716570641333,-620.81,0.00024931,3]
[327873787,1716570641343,-4524.79,0.00024931,3]
[327873788,1716570641352,-500.0,0.00024931,3]
[327873789,1716570641362,-500.0,0.00024931,3]
[327873790,1716570641371,-500.0,0.00024931,3]
[327873791,1716570641381,-1443.12,0.00024931,3]
[327873792,1716570641391,-500.0,0.00024931,3]
[327873793,1716570641400,-500.0,0.00024931,3]
[327873794,1716570641409,-500.0,0.00024931,3]
[327873795,1716570641421,-500.0,0.00024931,3]
[327873796,1716570641429,-500.0,0.00024931,3]
[327873797,1716570641438,-500.0,0.00024931,3]
[327873798,1716570641447,-500.0,0.00024931,3]
[327873799,1716570641456,-500.0,0.00024931,3]
[327873800,1716570641466,-500.0,0.00024931,3]
[327873801,1716570641476,-500.0,0.00024931,3]
[327873802,1716570641486,-500.0,0.00024931,3]
[327873803,1716570641495,-500.0,0.00024931,3]
[327873804,1716570641505,-500.0,0.00024931,3]
[327873805,1716570641514,-527.48,0.00024931,3]
[327873806,1716570641523,-150.81901718,0.00025095,4]
[327873807,1716570641533,-11822.26,0.00025204,10]
[327873808,1716570641542,-500.0,0.00025205,4]
[327873809,1716570641552,-500.0,0.00025205,4]
[327873810,1716570641561,-380.0,0.00025205,4]
[327873811,1716570641570,-500.0,0.00025205,4]
[327873812,1716570641580,-500.0,0.00025205,4]
[327873813,1716570641589,-378.2677005,0.00025205,2]
[327873814,1716570641598,-500.0,0.00025205,4]
[327873815,1716570641607,-500.0,0.00025205,4]
[327873816,1716570641617,-500.0,0.00025205,4]
[327873817,1716570641629,-500.0,0.00025205,4]
[327873818,1716570641638,-538.86,0.00025205,4]
[327873819,1716570641648,-500.0,0.00025205,4]
[327873820,1716570641658,-500.0,0.00025205,4]
[327873821,1716570641669,-500.0,0.00025205,4]
[327873822,1716570641678,-690.75,0.00025205,4]
[327873823,1716570641688,-500.0,0.00025205,4]
[327873824,1716570641697,-500.0,0.00025205,4]
[327873825,1716570641709,-537.28,0.00025205,4]
[327873826,1716570641718,-500.0,0.00025205,4]
[327873827,1716570641728,-500.0,0.00025205,4]
[327873828,1716570641737,-500.0,0.00025205,4]
[327873829,1716570641747,-500.0,0.00025205,4]
[327873830,1716570641756,-516.15,0.00025205,4]
[327873831,1716570641765,-258.35086456,0.00025205,4]
[327873832,1716570641774,-658.3,0.00025205,4]
[327873833,1716570641783,-500.0,0.00025205,4]
[327873834,1716570641793,-500.0,0.00025205,4]
[327873835,1716570641802,-500.0,0.00025205,4]
[327873836,1716570641811,-500.0,0.00025205,4]
[327873837,1716570641820,-2496.15,0.00025205,4]
[327873838,1716570641829,-500.0,0.00025205,4]
[327873839,1716570641839,-500.0,0.00025205,4]
[327873840,1716570641848,-500.0,0.00025205,4]
[327873841,1716570641857,-429.55,0.00025205,4]
[327873842,1716570641867,-500.0,0.00025205,4]
[327873843,1716570641875,-697.43,0.00025205,4]
[327873844,1716570641885,-500.0,0.00025205,4]
[327873845,1716570641895,-3464.55,0.00025205,4]
[327873846,1716570641904,-500.0,0.00025205,4]
[327873847,1716570641916,-532.79,0.00025205,4]
[327873848,1716570641927,-500.0,0.00025205,4]
[327873849,1716570641937,-594.31,0.00025205,4]
[327873850,1716570641947,-500.0,0.00025205,4]
[327873851,1716570641957,-1302.28,0.00025205,4]
[327873852,1716570641966,-500.0,0.00025205,4]
[327873853,1716570641975,-598.12,0.00025205,4]
[327873854,1716570641984,-500.0,0.00025205,4]
[327873855,1716570641994,-500.0,0.00025205,4]
[327873856,1716570642004,-1380.52,0.00025205,4]
[327873857,1716570642013,-500.0,0.00025205,4]
[327873858,1716570642022,-500.0,0.00025205,4]
[327873859,1716570642032,-500.0,0.00025205,4]
[327873860,1716570642042,-719.24,0.00025205,4]
[327873861,1716570642051,-594.85,0.00025205,4]
[327873862,1716570642059,-500.0,0.00025205,4]
[327873863,1716570642068,-638.39,0.00025205,4]
[327873864,1716570642078,-500.0,0.00025205,4]
[327873865,1716570642087,-804.24,0.00025205,4]
[327873866,1716570642097,-620.81,0.00025205,4]
[327873867,1716570642106,-4524.79,0.00025205,4]
[327873868,1716570642116,-292.59626494,0.00025205,4]
[327873869,1716570642125,-367.27924875,0.00025205,4]
[327873870,1716570642136,-1443.12,0.00025205,4]
[327873871,1716570642145,-500.0,0.00025205,4]
[327873872,1716570642154,-500.0,0.00025205,4]
[327873873,1716570642165,-366.66027768,0.00025205,4]
[327873874,1716570642174,-500.0,0.00025205,4]
[327873875,1716570642183,-500.0,0.00025205,4]
[327873876,1716570642192,-500.0,0.00025205,4]
[327873877,1716570642201,-433.34029675,0.00025205,4]
[327873878,1716570642211,-500.0,0.00025205,4]
[327873879,1716570642220,-500.0,0.00025205,4]
[327873880,1716570642229,-500.0,0.00025205,4]
[327873881,1716570642239,-500.0,0.00025205,4]
[327873882,1716570642248,-500.0,0.00025205,4]
[327873883,1716570642258,-527.48,0.00025205,4]
[327873884,1716570642267,-151.0,0.00025458,5]
[327873885,1716570642276,-7341.15827718,0.00025478,2]
[327873886,1716570642285,-11822.26,0.00025478,11]
[327873887,1716570642295,-518.38,0.00025479,5]
[327873888,1716570642304,-500.0,0.00025479,5]
[327873889,1716570642313,-500.0,0.00025479,5]
[327873890,1716570642322,-500.0,0.00025479,5]
[327873891,1716570642332,-500.0,0.00025479,5]
[327873892,1716570642341,-538.86,0.00025479,5]
[327873893,1716570642350,-500.0,0.00025479,5]
[327873894,1716570642359,-500.0,0.00025479,5]
[327873895,1716570642368,-500.0,0.00025479,5]
[327873896,1716570642378,-690.75,0.00025479,5]
[327873897,1716570642387,-500.0,0.00025479,5]
[327873898,1716570642396,-500.0,0.00025479,5]
[327873899,1716570642405,-537.28,0.00025479,5]
[327873900,1716570642416,-500.0,0.00025479,5]
[327873901,1716570642425,-500.0,0.00025479,5]
[327873902,1716570642434,-500.0,0.00025479,5]
[327873903,1716570642443,-500.0,0.00025479,5]
[327873904,1716570642452,-516.15,0.00025479,5]
[327873905,1716570642462,-658.3,0.00025479,5]
[327873906,1716570642470,-500.0,0.00025479,5]
[327873907,1716570642480,-500.0,0.00025479,5]
[327873908,1716570642489,-500.0,0.00025479,5]
[327873909,1716570642499,-2496.15,0.00025479,5]
[327873910,1716570642508,-500.0,0.00025479,5]
[327873911,1716570642517,-500.0,0.00025479,5]
[327873912,1716570642526,-500.0,0.00025479,5]
[327873914,1716570642536,-697.43,0.00025479,5]
[327873915,1716570642545,-500.0,0.00025479,5]
[327873916,1716570642554,-3464.55,0.00025479,5]
[327873917,1716570642563,-500.0,0.00025479,5]
[327873918,1716570642572,-532.79,0.00025479,5]
[327873919,1716570642581,-500.0,0.00025479,5]
[327873920,1716570642590,-594.31,0.00025479,5]
[327873921,1716570642599,-1302.28,0.00025479,5]
[327873922,1716570642609,-500.0,0.00025479,5]
[327873923,1716570642618,-598.12,0.00025479,5]
[327873924,1716570642633,-500.0,0.00025479,5]
[327873925,1716570642643,-500.0,0.00025479,5]
[327873926,1716570642651,-1380.52,0.00025479,5]
[327873927,1716570642661,-500.0,0.00025479,5]
[327873928,1716570642675,-500.0,0.00025479,5]
[327873929,1716570642684,-719.24,0.00025479,5]
[327873930,1716570642694,-594.85,0.00025479,5]
[327873931,1716570642703,-638.39,0.00025479,5]
[327873932,1716570642713,-500.0,0.00025479,5]
[327873933,1716570642722,-804.24,0.00025479,5]
[327873934,1716570642731,-620.81,0.00025479,5]
[327873935,1716570642740,-4524.79,0.00025479,5]
[327873936,1716570642749,-1443.12,0.00025479,5]
[327873937,1716570642759,-500.0,0.00025479,5]
[327873938,1716570642768,-500.0,0.00025479,5]
[327873939,1716570642777,-500.0,0.00025479,5]
[327873940,1716570642786,-500.0,0.00025479,5]
[327873941,1716570642796,-500.0,0.00025479,5]
[327873942,1716570642806,-500.0,0.00025479,5]
[327873943,1716570642815,-465.56510077,0.00025479,5]
[327873944,1716570642824,-527.48,0.00025479,5]
[327873945,1716570642833,-150.81901718,0.00025607,2]
[327873946,1716570642843,-11822.26,0.00025752,12]
[327873947,1716570642852,-500.0,0.00025753,6]
[327873948,1716570642861,-500.0,0.00025753,6]
[327873949,1716570642870,-500.0,0.00025753,6]
[327873950,1716570642880,-500.0,0.00025753,6]
[327873951,1716570642889,-538.86,0.00025753,6]
[327873952,1716570643021,-417.62581018,0.00025753,6]
[327873953,1716570643032,-500.0,0.00025753,6]
[327873954,1716570643042,-500.0,0.00025753,6]
[327873955,1716570643051,-690.75,0.00025753,6]
[327873956,1716570643060,-500.0,0.00025753,6]
[327873957,1716570643070,-500.0,0.00025753,6]
[327873958,1716570643080,-537.28,0.00025753,6]
[327873959,1716570643089,-500.0,0.00025753,6]
[327873960,1716570643100,-500.0,0.00025753,6]
[327873961,1716570643109,-500.0,0.00025753,6]
[327873962,1716570643118,-500.0,0.00025753,6]
[327873963,1716570643127,-516.15,0.00025753,6]
[327873964,1716570643136,-658.3,0.00025753,6]
[327873965,1716570643146,-500.0,0.00025753,6]
[327873967,1716570643156,-2496.15,0.00025753,6]
[327873968,1716570643167,-500.0,0.00025753,6]
[327873971,1716570643177,-500.0,0.00025753,6]
[327873974,1716570643186,-697.43,0.00025753,6]
[327873977,1716570643195,-500.0,0.00025753,6]
[327873980,1716570643204,-3464.55,0.00025753,6]
[327873982,1716570643213,-500.0,0.00025753,6]
[327873985,1716570643222,-532.79,0.00025753,6]
[327873988,1716570643231,-500.0,0.00025753,6]
[327873991,1716570643240,-594.31,0.00025753,6]
[327873994,1716570643250,-1302.28,0.00025753,6]
[327873997,1716570643260,-500.0,0.00025753,6]
[327874000,1716570643269,-598.12,0.00025753,6]
[327874003,1716570643279,-500.0,0.00025753,6]
[327874006,1716570643288,-500.0,0.00025753,6]
[327874009,1716570643297,-1380.52,0.00025753,6]
[327874012,1716570643306,-500.0,0.00025753,6]
[327874015,1716570643315,-500.0,0.00025753,6]
[327874017,1716570643324,-719.24,0.00025753,6]
[327874019,1716570643334,-594.85,0.00025753,6]
[327874021,1716570643343,-638.39,0.00025753,6]
[327874023,1716570643352,-500.0,0.00025753,6]
[327874024,1716570643361,-804.24,0.00025753,6]
[327874027,1716570643371,-620.81,0.00025753,6]
[327874029,1716570643381,-4524.79,0.00025753,6]
[327874030,1716570643390,-1443.12,0.00025753,6]
[327874031,1716570643399,-500.0,0.00025753,6]
[327874032,1716570643408,-500.0,0.00025753,6]
[327874033,1716570643418,-396.91,0.00025753,6]
[327874034,1716570643428,-500.0,0.00025753,6]
[327874035,1716570643437,-500.0,0.00025753,6]
[327874036,1716570643447,-500.0,0.00025753,6]
[327874037,1716570643455,-527.48,0.00025753,6]
[327874038,1716570643465,-204.6274004,0.00025781,2]
[327874039,1716570643475,-496.0,0.00025895,2]
[327874040,1716570643484,-151.545,0.00025895,2]
[327874041,1716570643493,-151.0,0.00026011,5]
[327874042,1716570643502,-11822.26,0.00026026,13]
[327874043,1716570643511,-500.0,0.00026027,7]
[327874044,1716570643521,-500.0,0.00026027,7]
[327874045,1716570643532,-500.0,0.00026027,7]
[327874046,1716570643541,-500.0,0.00026027,7]
[327874047,1716570643552,-538.86,0.00026027,7]
[327874048,1716570643562,-500.0,0.00026027,7]
[327874049,1716570643572,-500.0,0.00026027,7]
[327874050,1716570643582,-690.75,0.00026027,7]
[327874051,1716570643591,-500.0,0.00026027,7]
[327874052,1716570643601,-500.0,0.00026027,7]
[327874053,1716570643611,-537.28,0.00026027,7]
[327874054,1716570643620,-500.0,0.00026027,7]
[327874055,1716570643634,-500.0,0.00026027,7]
[327874056,1716570643643,-500.0,0.00026027,7]
[327874057,1716570643653,-500.0,0.00026027,7]
[327874058,1716570643663,-516.15,0.00026027,7]
[327874059,1716570643673,-658.3,0.00026027,7]
[327874060,1716570643682,-500.0,0.00026027,7]
[327874061,1716570643690,-2496.15,0.00026027,7]
[327874062,1716570643700,-500.0,0.00026027,7]
[327874063,1716570643710,-500.0,0.00026027,7]
[327874064,1716570643720,-697.43,0.00026027,7]
[327874065,1716570643729,-500.0,0.00026027,7]
[327874066,1716570643740,-3464.55,0.00026027,7]
[327874067,1716570643749,-500.0,0.00026027,7]
[327874068,1716570643758,-532.79,0.00026027,7]
[327874069,1716570643767,-500.0,0.00026027,7]
[327874070,1716570643776,-594.31,0.00026027,7]
[327874071,1716570643785,-1302.28,0.00026027,7]
[327874072,1716570643796,-500.0,0.00026027,7]
[327874074,1716570643806,-500.0,0.00026027,7]
[327874076,1716570643815,-598.12,0.00026027,7]
[327874078,1716570643824,-500.0,0.00026027,7]
[327874079,1716570643833,-1380.52,0.00026027,7]
[327874080,1716570643842,-500.0,0.00026027,7]
[327874082,1716570643851,-500.0,0.00026027,7]
[327874083,1716570643862,-719.24,0.00026027,7]
[327874084,1716570643871,-594.85,0.00026027,7]
[327874085,1716570643880,-638.39,0.00026027,7]
[327874086,1716570643889,-500.0,0.00026027,7]
[327874087,1716570643898,-804.24,0.00026027,7]
[327874088,1716570643908,-620.81,0.00026027,7]
[327874089,1716570643919,-4524.79,0.00026027,7]
[327874090,1716570643928,-1443.12,0.00026027,7]
[327874091,1716570643938,-500.0,0.00026027,7]
[327874092,1716570643947,-500.0,0.00026027,7]
[327874093,1716570643957,-500.0,0.00026027,7]
[327874094,1716570643967,-500.0,0.00026027,7]
[327874095,1716570643976,-500.0,0.00026027,7]
[327874096,1716570643985,-527.48,0.00026027,7]
[327874097,1716570643994,-153.0,0.0002611,2]
[327874098,1716570644004,-153.0,0.0002611,2]
[327874099,1716570644014,-153.0,0.0002611,2]
[327874100,1716570644023,-153.0,0.00026219,2]
[327874101,1716570644033,-11822.26,0.00026299,14]
[327874102,1716570644043,-11822.26,0.000263,15]
[327874103,1716570644053,-500.0,0.00026301,8]
[327874104,1716570644063,-500.0,0.00026301,8]
[327874105,1716570644073,-500.0,0.00026301,8]
[327874106,1716570644083,-500.0,0.00026301,8]
[327874107,1716570644093,-538.86,0.00026301,8]
[327874108,1716570644103,-500.0,0.00026301,8]
[327874109,1716570644113,-500.0,0.00026301,8]
[327874110,1716570644124,-690.75,0.00026301,8]
[327874111,1716570644133,-500.0,0.00026301,8]
[327874112,1716570644143,-500.0,0.00026301,8]
[327874113,1716570644154,-537.28,0.00026301,8]
[327874114,1716570644164,-500.0,0.00026301,8]
[327874115,1716570644176,-500.0,0.00026301,8]
[327874116,1716570644186,-377.94362551,0.00026301,8]
[327874117,1716570644196,-500.0,0.00026301,8]
[327874118,1716570644207,-516.15,0.00026301,8]
[327874119,1716570644217,-658.3,0.00026301,8]
[327874120,1716570644227,-2496.15,0.00026301,8]
[327874121,1716570644237,-500.0,0.00026301,8]
[327874122,1716570644247,-500.0,0.00026301,8]
[327874123,1716570644257,-697.43,0.00026301,8]
[327874124,1716570644267,-500.0,0.00026301,8]
[327874125,1716570644276,-3464.55,0.00026301,8]
[327874126,1716570644286,-500.0,0.00026301,8]
[327874127,1716570644297,-532.79,0.00026301,8]
[327874128,1716570644307,-500.0,0.00026301,8]
[327874129,1716570644317,-594.31,0.00026301,8]
[327874130,1716570644328,-1302.28,0.00026301,8]
[327874131,1716570644338,-500.0,0.00026301,8]
[327874132,1716570644348,-500.0,0.00026301,8]
[327874133,1716570644358,-598.12,0.00026301,8]
[327874134,1716570644368,-500.0,0.00026301,8]
[327874135,1716570644379,-1380.52,0.00026301,8]
[327874136,1716570644390,-500.0,0.00026301,8]
[327874137,1716570644400,-500.0,0.00026301,8]
[327874138,1716570644410,-719.24,0.00026301,8]
[327874139,1716570644422,-594.85,0.00026301,8]
[327874140,1716570644432,-638.39,0.00026301,8]
[327874141,1716570644442,-350.13364585,0.00026301,8]
[327874142,1716570644452,-804.24,0.00026301,8]
[327874143,1716570644462,-620.81,0.00026301,8]
[327874144,1716570644472,-4524.79,0.00026301,8]
[327874145,1716570644483,-1443.12,0.00026301,8]
[327874146,1716570644492,-500.0,0.00026301,8]
[327874147,1716570644502,-500.0,0.00026301,8]
[327874148,1716570644513,-500.0,0.00026301,8]
[327874149,1716570644523,-500.0,0.00026301,8]
[327874150,1716570644534,-500.0,0.00026301,8]
[327874151,1716570644544,-527.48,0.00026301,8]
[327874152,1716570644554,-153.0,0.00026301,2]
[327874153,1716570644564,-419.099999,0.000264,2]
[327874154,1716570644574,-1000.0,0.00026414,2]
[327874155,1716570644584,-1000.0,0.00026422,2]
[327874156,1716570644595,-1000.0,0.00026438,2]
[327874157,1716570644607,-1000.0,0.00026452,2]
[327874158,1716570644618,-286.6627749,0.00026458,2]
[327874159,1716570644633,-1000.0,0.00026494,2]
[327874160,1716570644645,-1000.0,0.00026495,2]
[327874161,1716570644656,-1000.0,0.000265,2]
[327874162,1716570644670,-1000.0,0.00026516,2]
[327874163,1716570644680,-1000.0,0.00026524,2]
[327874164,1716570644691,-151.0,0.00026563,5]
[327874165,1716570644700,-1000.0,0.00026566,2]
[327874166,1716570644712,-11822.26,0.00026574,16]
[327874167,1716570644721,-172.2452851,0.00026575,9]
[327874168,1716570644731,-500.0,0.00026575,9]
[327874169,1716570644741,-226.05406954,0.00026575,9]
[327874170,1716570644751,-500.0,0.00026575,9]
[327874171,1716570644761,-538.86,0.00026575,9]
[327874172,1716570644772,-500.0,0.00026575,9]
[327874173,1716570644782,-500.0,0.00026575,9]
[327874174,1716570644792,-690.75,0.00026575,9]
[327874175,1716570644803,-500.0,0.00026575,9]
[327874176,1716570644813,-254.62959941,0.00026575,9]
[327874177,1716570644824,-537.28,0.00026575,9]
[327874178,1716570644835,-500.0,0.00026575,9]
[327874179,1716570644845,-500.0,0.00026575,9]
[327874180,1716570644855,-500.0,0.00026575,9]
[327874181,1716570644865,-516.15,0.00026575,9]
[327874182,1716570644875,-658.3,0.00026575,9]
[327874183,1716570644885,-2496.15,0.00026575,9]
[327874184,1716570644894,-500.0,0.00026575,9]
[327874185,1716570644905,-500.0,0.00026575,9]
[327874186,1716570644914,-697.43,0.00026575,9]
[327874187,1716570644927,-500.0,0.00026575,9]
[327874188,1716570644938,-3464.55,0.00026575,9]
[327874189,1716570644948,-462.44,0.00026575,9]
[327874190,1716570644958,-532.79,0.00026575,9]
[327874191,1716570644968,-500.0,0.00026575,9]
[327874192,1716570644978,-594.31,0.00026575,9]
[327874193,1716570644987,-1302.28,0.00026575,9]
[327874194,1716570644997,-500.0,0.00026575,9]
[327874195,1716570645006,-500.0,0.00026575,9]
[327874196,1716570645016,-598.12,0.00026575,9]
[327874197,1716570645027,-500.0,0.00026575,9]
[327874198,1716570645037,-1380.52,0.00026575,9]
[327874199,1716570645049,-500.0,0.00026575,9]
[327874200,1716570645059,-500.0,0.00026575,9]
[327874201,1716570645069,-719.24,0.00026575,9]
[327874202,1716570645079,-594.85,0.00026575,9]
[327874203,1716570645090,-638.39,0.00026575,9]
[327874204,1716570645101,-804.24,0.00026575,9]
[327874205,1716570645111,-620.81,0.00026575,9]
[327874206,1716570645121,-2522.30479958,0.00026575,9]
[327874211,1716570648444,-154.9999969,0.00019999,2]
[327874212,1716570648454,-324.35548647,0.0002283,2]
[327874213,1716570648463,-500.0,0.00024657,2]
[327874214,1716570648472,-425.95696367,0.00024657,2]
[327874215,1716570648482,-500.0,0.00024657,2]
[327874216,1716570648491,-500.0,0.00024657,2]
[327874217,1716570648500,-500.0,0.00024657,2]
[327874218,1716570648510,-500.0,0.00024931,3]
[327874219,1716570648520,-500.0,0.00024931,3]
[327874220,1716570648529,-500.0,0.00025205,4]
[327874221,1716570648661,-405.48913449,0.00025479,5]
[327874222,1716570648673,-2002.48520042,0.00026575,9]
[327874223,1716570648684,-1443.12,0.00026575,9]
[327874224,1716570648693,-500.0,0.00026575,9]
[327874225,1716570648703,-500.0,0.00026575,9]
[327874226,1716570648713,-500.0,0.00026575,9]
[327874227,1716570648723,-500.0,0.00026575,9]
[327874228,1716570648732,-500.0,0.00026575,9]
[327874229,1716570648742,-527.48,0.00026575,9]
[327874230,1716570648751,-1000.0,0.00026576,2]
[327874231,1716570648760,-231.13187627,0.0002663,2]
[327874232,1716570648770,-204.6274004,0.00026685,2]
[327874233,1716570648779,-4226.56801723,0.00026701,2]
[327874234,1716570648789,-417.57091557,0.00026807,2]
[327874235,1716570648799,-1085.12779222,0.00026848,17]
[327874236,1716570649684,290.5505842,0.0001938,2]
[327874237,1716570721758,1143.59005852,0.00018159,2]
[327874238,1716570813150,1308.42633159,0.0001938,11]
[327874239,1716570933105,654.21316579,0.0001938,11]
[327874240,1716570996100,10200.0,0.00027,30]
[327874241,1716571053192,327.1065829,0.0001938,11]
[327874242,1716571086106,5007.0,0.00027,30]
[327874243,1716571173044,163.55329145,0.00019212,11]
[327874244,1716571259680,733.4773594,9.999e-05,2]
[327874245,1716571324152,3375.14983584,9.999e-05,2]
[327874246,1716571328904,3633.2531206,9.999e-05,2]
[327874247,1716571338156,986.2720064,9.999e-05,2]
[327874248,1716571346913,3632.2191027,9.999e-05,2]
[327874249,1716571390837,544.44,0.00010959,2]
[327874250,1716571533303,-415.75940069,0.00017007,2]
[327874251,1716571579321,154.82968734,9.999e-05,2]
[327874252,1716571626250,-161.41573518,0.0001701,2]
[327874253,1716571626271,-714.95827069,0.00017011,2]
[327874254,1716571626291,-154.82968734,0.000171,2]
[327874255,1716571626312,-5682.22683745,0.000171,2]
[327874256,1716571627106,-234.36170377,0.000171,2]
[327874257,1716571632124,-369.72539136,0.000171,2]
[327874258,1716571635152,-8766.32322382,0.00017099,2]
[327874259,1716571644169,-321.71007816,0.00017099,2]
[327874260,1716571745131,-1020.54850039,0.00016018,2]
[327874261,1716571745153,-59438.70294732,0.00016115,2]
[327874262,1716571745174,-11064.75247274,0.00016116,2]
[327874263,1716571745196,-24900.0,0.00016118,2]
[327874264,1716571745216,-155.04341216,0.00017098,2]
[327874265,1716571745236,-154.82968734,0.00017099,2]
[327874266,1716571745256,-6266.58275017,0.000171,2]
[327874267,1716571745276,-214.89570402,0.00017103,2]
[327874268,1716571745296,-636.42588641,0.00017111,2]
[327874269,1716571745317,-6705.9718993,0.00017157,2]
[327874270,1716571745338,-896.31216814,0.00018,2]
[327874271,1716571745358,-371.12403082,0.00018159,2]
[327874272,1716571745378,-494.888811,0.00018818,2]
[327874273,1716571745399,-714.95827066,0.00018898,2]
[327874274,1716571751168,-435.74669964,0.00019178,2]
[327874275,1716571751191,-500.0,0.00019178,2]
[327874276,1716571751213,-500.0,0.00019178,2]
[327874277,1716571751236,-297.35136625,0.00019178,2]
[327874278,1716571751256,-369.55759549,0.00019178,2]
[327874279,1716571751278,-500.0,0.00019178,2]
[327874280,1716571751304,-500.0,0.00019178,2]
[327874281,1716571751324,-500.0,0.00019178,2]
[327874282,1716571751345,-348.07950032,0.00019178,2]
[327874283,1716571751365,-500.0,0.00019178,2]
[327874284,1716571751388,-360.76387647,0.00019178,2]
[327874285,1716571751412,-500.0,0.00019178,2]
[327874286,1716571751432,-500.0,0.00019178,2]
[327874287,1716571751452,-500.0,0.00019178,2]
[327874288,1716571751476,-500.0,0.00019178,2]
[327874289,1716571751496,-500.0,0.00019178,2]
[327874290,1716571751520,-500.0,0.00019178,2]
[327874291,1716571751540,-500.0,0.00019178,2]
[327874292,1716571751563,-500.0,0.00019178,2]
[327874293,1716571751583,-500.0,0.00019178,2]
[327874294,1716571751607,-500.0,0.00019178,2]
[327874295,1716571751626,-231.90746277,0.00019178,2]
[327874296,1716571751652,-500.0,0.00019178,2]
[327874297,1716571751676,-500.0,0.00019178,2]
[327874298,1716571751696,-500.0,0.00019178,2]
[327874299,1716571751719,-500.0,0.00019178,2]
[327874300,1716571751741,-500.0,0.00019178,2]
[327874301,1716571751766,-500.0,0.00019178,2]
[327874302,1716571751791,-500.0,0.00019178,2]
[327874303,1716571751815,-500.0,0.00019178,2]
[327874304,1716571751838,-500.0,0.00019178,2]
[327874305,1716571751861,-500.0,0.00019178,2]
[327874306,1716571751884,-500.0,0.00019178,2]
[327874307,1716571751909,-500.0,0.00019178,2]
[327874308,1716571751941,-500.0,0.00019178,2]
[327874309,1716571751966,-500.0,0.00019178,2]
[327874310,1716571751992,-500.0,0.00019178,2]
[327874311,1716571752017,-500.0,0.00019178,2]
[327874312,1716571752041,-500.0,0.00019178,2]
[327874313,1716571752065,-500.0,0.00019178,2]
[327874314,1716571752090,-500.0,0.00019178,2]